fUST/lending_fUST_20240619
["ID","MTS","AMOUNT","RATE_DAILY","PERIOD"]
[329840985,1718737842702,-500.0,0.0001726,2]
[329840986,1718737842712,-500.0,0.0001726,2]
[329840987,1718737842722,-500.0,0.0001726,2]
[329840988,1718737842732,-500.0,0.0001726,2]
[329840989,1718737842742,-500.0,0.0001726,2]
[329840990,1718737842751,-500.0,0.0001726,2]
[329840991,1718737842760,-500.0,0.0001726,2]
[329840992,1718737842770,-500.0,0.0001726,2]
[329840994,1718737842779,-500.0,0.0001726,2]
[329840996,1718737842789,-622.28,0.0001726,2]
[329840998,1718737842806,-1044.0,0.0001726,2]
[329841000,1718737842815,-500.0,0.0001726,2]
[329841002,1718737842825,-500.0,0.0001726,2]
[329841003,1718737842834,-500.0,0.0001726,2]
[329841004,1718737842843,-733.13,0.0001726,2]
[329841005,1718737842852,-500.0,0.0001726,2]
[329841006,1718737842862,-500.0,0.0001726,2]
[329841007,1718737842872,-500.0,0.0001726,2]
[329841008,1718737842881,-644.3,0.0001726,2]
[329841009,1718737842894,-500.0,0.0001726,2]
[329841010,1718737842904,-500.0,0.0001726,2]
[329841011,1718737842915,-500.0,0.0001726,2]
[329841012,1718737842924,-2068.84,0.0001726,2]
[329841013,1718737842934,-254.19680779,0.00017366,2]
[329841014,1718737842943,-157.71613158,0.00017532,2]
[329841015,1718737842953,-306.5025802,0.00017532,2]
[329841016,1718737842964,-187.30405388,0.00017533,2]
[329841017,1718737842973,-13619.40492468,0.00017533,2]
[329841018,1718737842984,-500.0,0.00017533,2]
[329841019,1718737842994,-500.0,0.00017533,2]
[329841020,1718737843003,-179.4,0.00017534,2]
[329841021,1718737843012,-609.16,0.00017534,2]
[329841022,1718737843022,-500.0,0.00017534,2]
[329841023,1718737843032,-307.6,0.00017534,2]
[329841024,1718737843043,-275.6,0.00017534,2]
[329841025,1718737843055,-500.0,0.00017534,2]
[329841026,1718737843064,-6809.36,0.00017534,2]
[329841027,1718737843074,-500.0,0.00017534,2]
[329841028,1718737843083,-4105.17,0.00017534,2]
[329841029,1718737843093,-960.05,0.00017534,2]
[329841030,1718737843103,-521.07,0.00017534,2]
[329841031,1718737843112,-500.0,0.00017534,2]
[329841032,1718737843121,-603.52,0.00017534,2]
[329841033,1718737843131,-1337.87,0.00017534,2]
[329841034,1718737843141,-520.08,0.00017534,2]
[329841035,1718737843150,-500.0,0.00017534,2]
[329841036,1718737843160,-1044.0,0.00017534,2]
[329841037,1718737843169,-500.0,0.00017534,2]
[329841038,1718737843179,-200.0,0.00017534,2]
[329841043,1718737843189,-733.13,0.00017534,2]
[329841048,1718737843200,-323.68,0.00017534,2]
[329841053,1718737843210,-465.7564421,0.00017534,2]
[329841060,1718737843222,-34.2435579,0.00017534,2]
[329841065,1718737843232,-500.0,0.00017534,2]
[329841067,1718737843242,-644.3,0.00017534,2]
[329841071,1718737843251,-469.49616888,0.00017534,2]
[329841076,1718737843261,-500.0,0.00017534,2]
[329841078,1718737843271,-2068.84,0.00017534,2]
[329841080,1718737843280,-254.19680779,0.00017708,2]
[329841082,1718737843290,-500.0,0.00017807,2]
[329841084,1718737843303,-500.0,0.00017807,2]
[329841086,1718737843312,-500.0,0.00017808,2]
[329841088,1718737843322,-500.0,0.00017808,2]
[329841090,1718737843331,-6809.36,0.00017808,2]
[329841092,1718737843340,-4105.17,0.00017808,2]
[329841094,1718737843350,-960.05,0.00017808,2]
[329841096,1718737843359,-521.07,0.00017808,2]
[329841098,1718737843368,-500.0,0.00017808,2]
[329841100,1718737843377,-1294.93406229,0.00017808,2]
[329841102,1718737843389,-42.93593771,0.00017808,2]
[329841104,1718737843399,-500.0,0.00017808,2]
[329841105,1718737843408,-1044.0,0.00017808,2]
[329841106,1718737843418,-500.0,0.00017808,2]
[329841107,1718737843427,-733.13,0.00017808,2]
[329841108,1718737843437,-500.0,0.00017808,2]
[329841109,1718737843446,-644.3,0.00017808,2]
[329841110,1718737843455,-500.0,0.00017808,2]
[329841111,1718737843465,-2068.84,0.00017808,2]
[329841112,1718737843474,-500.0,0.00018082,2]
[329841113,1718737843484,-6809.36,0.00018082,2]
[329841114,1718737843494,-4105.17,0.00018082,2]
[329841115,1718737843503,-960.05,0.00018082,2]
[329841116,1718737843513,-521.07,0.00018082,2]
[329841117,1718737843522,-500.0,0.00018082,2]
[329841118,1718737843531,-1337.87,0.00018082,2]
[329841119,1718737843542,-500.0,0.00018082,2]
[329841120,1718737843553,-1044.0,0.00018082,2]
[329841121,1718737843563,-210.76,0.00018082,2]
[329841122,1718737843572,-733.13,0.00018082,2]
[329841123,1718737843582,-500.0,0.00018082,2]
[329841124,1718737843592,-644.3,0.00018082,2]
[329841125,1718737843601,-500.0,0.00018082,2]
[329841126,1718737843611,-2068.84,0.00018082,2]
[329841127,1718737843621,-1536.84750293,0.00018355,4]
[329841128,1718737843630,-327.02172406,0.00018355,2]
[329841129,1718737843640,-500.0,0.00018355,2]
[329841130,1718737843650,-500.0,0.00018356,2]
[329841131,1718737843659,-1645.60526987,0.00018356,2]
[329841132,1718737843671,-5163.75473013,0.00018356,2]
[329841133,1718737843681,-663.45381546,0.00018356,2]
[329841143,1718737844064,-304.07273272,0.00018356,2]
[329841145,1718737844076,-909.8,0.00018356,2]
[329841146,1718737844088,-2227.84345182,0.00018356,2]
[329841147,1718737844099,-960.05,0.00018356,2]
[329841148,1718737844108,-521.07,0.00018356,2]
[329841149,1718737844118,-616.82,0.00018356,2]
[329841150,1718737844128,-1337.87,0.00018356,2]
[329841151,1718737844137,-185.24,0.00018356,2]
[329841152,1718737844146,-1044.0,0.00018356,2]
[329841153,1718737844155,-733.13,0.00018356,2]
[329841154,1718737844167,-500.0,0.00018356,2]
[329841155,1718737844176,-295.89448949,0.00018356,2]
[329841156,1718737844188,-348.40551051,0.00018356,2]
[329841157,1718737844198,-298.47999475,0.00018356,2]
[329841158,1718737844209,-201.52000525,0.00018356,2]
[329841159,1718737844218,-138.00499475,0.00018356,2]
[329841207,1718737846975,-1930.83500525,0.00018356,2]
[329841208,1718737846985,-500.0,0.0001863,2]
[329841209,1718737846995,-6809.36,0.0001863,2]
[329841210,1718737847004,-4105.17,0.0001863,2]
[329841211,1718737847014,-960.05,0.0001863,2]
[329841212,1718737847023,-521.07,0.0001863,2]
[329841213,1718737847033,-1337.87,0.0001863,2]
[329841214,1718737847043,-1044.0,0.0001863,2]
[329841215,1718737847055,-733.13,0.0001863,2]
[329841216,1718737847065,-500.0,0.0001863,2]
[329841217,1718737847075,-644.3,0.0001863,2]
[329841218,1718737847084,-500.0,0.0001863,2]
[329841219,1718737847094,-2068.84,0.0001863,2]
[329841220,1718737847104,-150.0,0.000189,2]
[329841221,1718737847118,-500.0,0.00018903,2]
[329841222,1718737847127,-500.0,0.00018904,2]
[329841223,1718737847138,-6809.36,0.00018904,2]
[329841224,1718737847147,-4105.17,0.00018904,2]
[329841225,1718737847157,-960.05,0.00018904,2]
[329841226,1718737847166,-521.07,0.00018904,2]
[329841227,1718737847175,-363.4037077,0.00018904,2]
[329841228,1718737847187,-941.18894748,0.00018904,2]
[329841229,1718737847199,-33.27734482,0.00018904,2]
[329841230,1718737847208,-1044.0,0.00018904,2]
[329841231,1718737847218,-733.13,0.00018904,2]
[329841232,1718737847227,-500.0,0.00018904,2]
[329841233,1718737847236,-644.3,0.00018904,2]
[329841234,1718737847246,-500.0,0.00018904,2]
[329841235,1718737847255,-2068.84,0.00018904,2]
[329841236,1718737847265,-343.566572,0.00019096,2]
[329841237,1718737847275,-500.0,0.00019178,2]
[329841238,1718737847284,-6809.36,0.00019178,2]
[329841239,1718737847294,-4105.17,0.00019178,2]
[329841240,1718737847305,-960.05,0.00019178,2]
[329841241,1718737847314,-521.07,0.00019178,2]
[329841242,1718737847323,-1337.87,0.00019178,2]
[329841243,1718737847332,-1044.0,0.00019178,2]
[329841244,1718737847342,-733.13,0.00019178,2]
[329841245,1718737847351,-500.0,0.00019178,2]
[329841246,1718737847360,-644.3,0.00019178,2]
[329841247,1718737847369,-500.0,0.00019178,2]
[329841248,1718737847378,-2068.84,0.00019178,2]
[329841249,1718737847387,-1750.0,0.00019178,2]
[329841250,1718737847396,-500.0,0.00019452,2]
[329841251,1718737847405,-6809.36,0.00019452,2]
[329841252,1718737847414,-4105.17,0.00019452,2]
[329841253,1718737847423,-960.05,0.00019452,2]
[329841254,1718737847432,-521.07,0.00019452,2]
[329841255,1718737847441,-1337.87,0.00019452,2]
[329841256,1718737847450,-1044.0,0.00019452,2]
[329841257,1718737847459,-733.13,0.00019452,2]
[329841258,1718737847468,-500.0,0.00019452,2]
[329841259,1718737847478,-644.3,0.00019452,2]
[329841260,1718737847488,-511.76,0.00019452,2]
[329841261,1718737847497,-2068.84,0.00019452,2]
[329841262,1718737847506,-153.0,0.00019516,2]
[329841263,1718737847516,-153.0,0.00019516,2]
[329841264,1718737847526,-153.0,0.00019516,2]
[329841265,1718737847535,-153.0,0.00019516,2]
[329841266,1718737847544,-153.0,0.00019516,2]
[329841267,1718737847555,-153.0,0.00019516,2]
[329841268,1718737847564,-153.0,0.00019516,2]
[329841269,1718737847574,-153.0,0.00019516,2]
[329841270,1718737847584,-153.0,0.00019516,2]
[329841271,1718737847593,-153.0,0.00019516,2]
[329841272,1718737847602,-153.0,0.00019516,2]
[329841273,1718737847611,-0.88524206,0.00019516,2]
[329841279,1718738619403,1795.69126014,9.999e-05,2]
[329841280,1718738757149,-3128.3688431,0.00015408,2]
[329841281,1718738757170,-10.7453897,0.0001542,2]
[329841282,1718738825211,-3123.2011782,0.00015419,4]
[329841283,1718738825237,-459.1561973,0.0001542,2]
[329841284,1718738825259,-299.9070457,0.00015559,2]
[329841285,1718738825281,-190.41727371,0.00016336,2]
[329841286,1718738825306,-1189.24036733,0.00016338,2]
[329841287,1718738825333,-870.48607649,0.00016435,2]
[329841288,1718738831117,-428.41710848,0.00016435,2]
[329841289,1718738831138,-300.0,0.00016435,2]
[329841290,1718738831158,-300.0,0.00016435,2]
[329841291,1718738831180,-182.9592721,0.00016436,2]
[329841292,1718738831200,-216.87588656,0.00016436,2]
[329841293,1718738831223,-156.97954424,0.00016436,2]
[329841294,1718738831246,-260.89460728,0.00016436,2]
[329841295,1718738831267,-236.89358134,0.00016436,2]
[329841296,1718738842151,-572.7962338,0.00015635,2]
[329841297,1718738842172,-3077.35790482,0.00016433,4]
[329841298,1718738842198,-1128.34771906,0.00016436,2]
[329841299,1718738842219,-926.32065947,0.00016436,2]
[329841300,1718738842243,-5945.95902563,0.00016437,2]
[329841301,1718738844129,-1008.2327461,0.00016437,2]
[329841304,1718739032748,-969.71847372,0.00016437,2]
[329841306,1718739032758,-30.43949167,0.00016437,2]
[329841346,1718739033978,-269.56050833,0.00016437,2]
[329841347,1718739033989,-500.0,0.00016438,2]
[329841348,1718739033999,-534.20240409,0.00016438,2]
[329841349,1718739034008,-501.57668032,0.00016438,2]
[329841350,1718739034017,-24.04294659,0.00016438,2]
[329841351,1718739034030,-476.50316977,0.00016438,2]
[329841352,1718739034040,-500.0,0.00016438,2]
[329841353,1718739034049,-500.0,0.00016438,2]
[329841354,1718739034059,-344.70322852,0.00016438,2]
[329841355,1718739038934,-155.29677148,0.00016438,2]
[329841357,1718739038945,-500.0,0.00016438,2]
[329841359,1718739038955,-500.0,0.00016438,2]
[329841361,1718739038965,-500.0,0.00016438,2]
[329841363,1718739038975,-500.0,0.00016438,2]
[329841365,1718739038984,-500.0,0.00016438,2]
[329841367,1718739038994,-473.07207162,0.00016438,2]
[329841381,1718739039713,-26.92792838,0.00016438,2]
[329841383,1718739039725,-502.23444229,0.00016438,2]
[329841385,1718739039736,-500.0,0.00016438,2]
[329841386,1718739039746,-161.33073943,0.00016438,2]
[329841388,1718739039757,-500.0,0.00016438,2]
[329841389,1718739039768,-500.0,0.00016438,2]
[329841390,1718739039778,-591.0915093,0.00016438,2]
[329841391,1718739039789,-500.0,0.00016438,2]
[329841392,1718739039799,-500.0,0.00016438,2]
[329841393,1718739039810,-500.0,0.00016438,2]
[329841394,1718739039820,-500.0,0.00016438,2]
[329841395,1718739039830,-510.88978252,0.00016438,2]
[329841396,1718739039841,-500.0,0.00016438,2]
[329841397,1718739039854,-500.0,0.00016438,2]
[329841398,1718739039864,-519.23377316,0.00016438,2]
[329841399,1718739039875,-500.0,0.00016438,2]
[329841400,1718739039885,-500.0,0.00016438,2]
[329841401,1718739039895,-517.26258287,0.00016438,2]
[329841402,1718739039905,-215.10187374,0.00016438,2]
[329841403,1718739039915,-500.0,0.00016438,2]
[329841404,1718739039925,-490.99090069,0.00016438,2]
[329841405,1718739039935,-372.67154953,0.00016438,2]
[329841406,1718739039945,-500.40284272,0.00016438,2]
[329841407,1718739039955,-512.89254068,0.00016438,2]
[329841408,1718739039965,-500.0,0.00016438,2]
[329841409,1718739039975,-500.0,0.00016438,2]
[329841410,1718739039986,-222.36505883,0.00016438,2]
[329841411,1718739039997,-227.0270757,0.00016438,2]
[329841412,1718739040007,-541.56260261,0.00016438,2]
[329841413,1718739040017,-500.0,0.00016438,2]
[329841414,1718739040027,-258.02995018,0.00016438,2]
[329841415,1718739040038,-503.63167053,0.00016438,2]
[329841416,1718739040048,-500.0,0.00016438,2]
[329841417,1718739040058,-536.51215524,0.00016438,2]
[329841418,1718739040068,-508.9817751,0.00016438,2]
[329841419,1718739040079,-500.0,0.00016438,2]
[329841420,1718739040089,-500.0,0.00016438,2]
[329841421,1718739040103,-500.0,0.00016438,2]
[329841422,1718739040113,-532.4288445,0.00016438,2]
[329841423,1718739040123,-500.0,0.00016438,2]
[329841424,1718739040132,-500.0,0.00016438,2]
[329841425,1718739040142,-1000.0,0.00016438,2]
[329841426,1718739040152,-500.0,0.00016438,2]
[329841427,1718739040162,-507.16501533,0.00016438,2]
[329841428,1718739040172,-591.25315435,0.00016438,2]
[329841429,1718739040182,-500.0,0.00016438,2]
[329841430,1718739040192,-175.3108034,0.00016438,2]
[329841431,1718739040203,-500.0,0.00016438,2]
[329841432,1718739040212,-500.0,0.00016438,2]
[329841433,1718739040223,-500.0,0.00016438,2]
[329841434,1718739040232,-500.0,0.00016438,2]
[329841435,1718739040243,-500.0,0.00016438,2]
[329841436,1718739040254,-501.53949538,0.00016438,2]
[329841437,1718739040264,-500.0,0.00016438,2]
[329841438,1718739040274,-501.56626762,0.00016438,2]
[329841439,1718739040286,-500.0,0.00016438,2]
[329841440,1718739040296,-167.38875341,0.00016438,2]
[329841441,1718739040307,-528.03545095,0.00016438,2]
[329841442,1718739040326,-7.43454905,0.00016438,2]
[329841443,1718739040336,-500.0,0.00016438,2]
[329841444,1718739040349,-500.0,0.00016438,2]
[329841445,1718739040361,-250.0,0.00016438,2]
[329841446,1718739040372,-500.0,0.00016438,2]
[329841447,1718739040383,-467.5,0.00016438,2]
[329841448,1718739040394,-502.57488504,0.00016438,2]
[329841449,1718739040405,-500.0,0.00016438,2]
[329841450,1718739040416,-500.0,0.00016438,2]
[329841451,1718739040427,-500.0,0.00016438,2]
[329841452,1718739040437,-219.64,0.00016438,2]
[329841456,1718739040581,-500.0,0.00016438,2]
[329841457,1718739040598,-500.0,0.00016438,2]
[329841458,1718739040609,-500.0,0.00016438,2]
[329841459,1718739040620,-503.86443097,0.00016438,2]
[329841460,1718739040631,-500.0,0.00016438,2]
[329841461,1718739040641,-620.52038664,0.00016438,2]
[329841462,1718739040652,-500.0,0.00016438,2]
[329841463,1718739040663,-500.0,0.00016438,2]
[329841464,1718739040674,-500.0,0.00016438,2]
[329841465,1718739040684,-503.31503696,0.00016438,2]
[329841466,1718739040698,-511.63469148,0.00016438,2]
[329841467,1718739040709,-500.0,0.00016438,2]
[329841468,1718739040719,-500.0,0.00016438,2]
[329841469,1718739040730,-551.21755233,0.00016438,2]
[329841470,1718739040740,-500.0,0.00016438,2]
[329841471,1718739040750,-500.0,0.00016438,2]
[329841472,1718739040760,-500.0,0.00016438,2]
[329841473,1718739040771,-500.0,0.00016438,2]
[329841474,1718739040781,-500.0,0.00016438,2]
[329841475,1718739040792,-500.0,0.00016438,2]
[329841476,1718739040802,-506.62906433,0.00016438,2]
[329841477,1718739040812,-500.0,0.00016438,2]
[329841478,1718739040822,-502.58130826,0.00016438,2]
[329841479,1718739040833,-500.0,0.00016438,2]
[329841480,1718739040843,-500.0,0.00016438,2]
[329841481,1718739040856,-503.77802829,0.00016438,2]
[329841482,1718739040866,-500.0,0.00016438,2]
[329841483,1718739040876,-500.0,0.00016438,2]
[329841484,1718739040886,-500.0,0.00016438,2]
[329841485,1718739040896,-500.0,0.00016438,2]
[329841486,1718739040906,-500.0,0.00016438,2]
[329841487,1718739040917,-500.0,0.00016438,2]
[329841488,1718739040927,-500.0,0.00016438,2]
[329841489,1718739040937,-502.4646511,0.00016438,2]
[329841490,1718739040947,-500.0,0.00016438,2]
[329841491,1718739040957,-502.67609223,0.00016438,2]
[329841492,1718739040969,-500.0,0.00016438,2]
[329841493,1718739040979,-500.0,0.00016438,2]
[329841494,1718739040990,-500.0,0.00016438,2]
[329841495,1718739041000,-501.61388171,0.00016438,2]
[329841496,1718739041011,-500.0,0.00016438,2]
[329841497,1718739041021,-500.0,0.00016438,2]
[329841498,1718739041032,-500.0,0.00016438,2]
[329841499,1718739041043,-500.0,0.00016438,2]
[329841500,1718739041052,-500.0,0.00016438,2]
[329841501,1718739041063,-500.0,0.00016438,2]
[329841502,1718739041074,-500.0,0.00016438,2]
[329841503,1718739041084,-500.0,0.00016438,2]
[329841504,1718739041096,-560.13,0.00016438,2]
[329841505,1718739041107,-500.0,0.00016438,2]
[329841506,1718739041118,-500.0,0.00016438,2]
[329841507,1718739041129,-500.0,0.00016438,2]
[329841509,1718739041140,-500.0,0.00016438,2]
[329841511,1718739041151,-500.0,0.00016438,2]
[329841513,1718739041161,-500.0,0.00016438,2]
[329841514,1718739041171,-500.0,0.00016438,2]
[329841515,1718739041181,-500.0,0.00016438,2]
[329841516,1718739041191,-500.0,0.00016438,2]
[329841517,1718739041202,-500.0,0.00016438,2]
[329841518,1718739041212,-500.0,0.00016438,2]
[329841519,1718739041222,-500.0,0.00016438,2]
[329841520,1718739041233,-1498.29,0.00016438,2]
[329841521,1718739041243,-831.37,0.00016438,2]
[329841522,1718739041253,-500.0,0.00016438,2]
[329841523,1718739041263,-500.0,0.00016438,2]
[329841524,1718739041274,-500.0,0.00016438,2]
[329841525,1718739041284,-500.0,0.00016438,2]
[329841526,1718739041294,-500.0,0.00016438,2]
[329841527,1718739041305,-3851.95,0.00016438,2]
[329841528,1718739041323,-500.0,0.00016438,2]
[329841529,1718739041334,-500.0,0.00016438,2]
[329841530,1718739041344,-500.0,0.00016438,2]
[329841531,1718739041356,-500.0,0.00016438,2]
[329841532,1718739041369,-500.0,0.00016438,2]
[329841533,1718739041379,-500.0,0.00016438,2]
[329841534,1718739041389,-500.0,0.00016438,2]
[329841535,1718739041398,-500.0,0.00016438,2]
[329841536,1718739041410,-500.0,0.00016438,2]
[329841538,1718739041420,-500.0,0.00016438,2]
[329841539,1718739041431,-500.0,0.00016438,2]
[329841541,1718739041441,-500.0,0.00016438,2]
[329841543,1718739041451,-500.0,0.00016438,2]
[329841545,1718739041461,-500.0,0.00016438,2]
[329841547,1718739041470,-6450.44,0.00016438,2]
[329841549,1718739041480,-500.0,0.00016438,2]
[329841551,1718739041490,-500.0,0.00016438,2]
[329841553,1718739041499,-500.0,0.00016438,2]
[329841555,1718739041509,-500.0,0.00016438,2]
[329841557,1718739041519,-500.0,0.00016438,2]
[329841559,1718739041529,-500.0,0.00016438,2]
[329841561,1718739041539,-500.0,0.00016438,2]
[329841563,1718739041548,-500.0,0.00016438,2]
[329841565,1718739041557,-639.59275045,0.00016438,2]
[329841567,1718739041567,-500.0,0.00016438,2]
[329841569,1718739041578,-500.0,0.00016438,2]
[329841571,1718739041588,-500.0,0.00016438,2]
[329841573,1718739041601,-500.0,0.00016438,2]
[329841575,1718739041611,-864.39,0.00016438,2]
[329841577,1718739041620,-500.0,0.00016438,2]
[329841579,1718739041630,-502.25197149,0.00016438,2]
[329841581,1718739041640,-500.0,0.00016438,2]
[329841583,1718739041651,-500.0,0.00016438,2]
[329841585,1718739041661,-500.0,0.00016438,2]
[329841587,1718739041671,-500.0,0.00016438,2]
[329841588,1718739041682,-500.0,0.00016438,2]
[329841589,1718739041692,-505.47759181,0.00016438,2]
[329841590,1718739041702,-500.0,0.00016438,2]
[329841591,1718739041712,-500.0,0.00016438,2]
[329841592,1718739041722,-500.81307043,0.00016438,2]
[329841593,1718739041732,-500.0,0.00016438,2]
[329841594,1718739041742,-500.0,0.00016438,2]
[329841595,1718739041753,-1066.17,0.00016438,2]
[329841596,1718739041763,-500.0,0.00016438,2]
[329841597,1718739041773,-513.19717429,0.00016438,2]
[329841598,1718739041783,-500.0,0.00016438,2]
[329841599,1718739041794,-500.0,0.00016438,2]
[329841600,1718739041804,-500.0,0.00016438,2]
[329841601,1718739041814,-500.0,0.00016438,2]
[329841602,1718739041825,-500.0,0.00016438,2]
[329841603,1718739041835,-500.0,0.00016438,2]
[329841604,1718739041844,-500.0,0.00016438,2]
[329841605,1718739041855,-500.0,0.00016438,2]
[329841606,1718739041866,-500.0,0.00016438,2]
[329841607,1718739041875,-437.34437612,0.00016438,2]
[329841608,1718739041885,-500.0,0.00016438,2]
[329841609,1718739041896,-500.0,0.00016438,2]
[329841610,1718739041905,-500.0,0.00016438,2]
[329841611,1718739041916,-504.14902112,0.00016438,2]
[329841612,1718739041926,-500.0,0.00016438,2]
[329841613,1718739041935,-500.0,0.00016438,2]
[329841614,1718739041946,-500.0,0.00016438,2]
[329841615,1718739041955,-500.0,0.00016438,2]
[329841616,1718739041966,-744.28,0.00016438,2]
[329841617,1718739041976,-500.0,0.00016438,2]
[329841618,1718739041986,-500.0,0.00016438,2]
[329841619,1718739041996,-500.0,0.00016438,2]
[329841620,1718739042006,-500.0,0.00016438,2]
[329841621,1718739042016,-500.0,0.00016438,2]
[329841622,1718739042026,-500.0,0.00016438,2]
[329841623,1718739042036,-500.0,0.00016438,2]
[329841624,1718739042045,-500.0,0.00016711,2]
[329841625,1718739042056,-500.0,0.00016711,2]
[329841626,1718739042065,-500.0,0.00016711,2]
[329841627,1718739042075,-500.0,0.00016711,2]
[329841628,1718739042085,-567.16,0.00016712,2]
[329841629,1718739042098,-500.0,0.00016712,2]
[329841630,1718739042107,-500.0,0.00016712,2]
[329841631,1718739042118,-500.0,0.00016712,2]
[329841632,1718739042128,-500.0,0.00016712,2]
[329841633,1718739042138,-500.0,0.00016712,2]
[329841634,1718739042148,-500.0,0.00016712,2]
[329841635,1718739042158,-500.0,0.00016712,2]
[329841636,1718739042168,-500.0,0.00016712,2]
[329841637,1718739042178,-500.0,0.00016712,2]
[329841638,1718739042188,-500.0,0.00016712,2]
[329841639,1718739042198,-500.0,0.00016712,2]
[329841641,1718739042208,-500.0,0.00016712,2]
[329841643,1718739042217,-500.0,0.00016712,2]
[329841645,1718739042227,-500.0,0.00016712,2]
[329841646,1718739042237,-500.0,0.00016712,2]
[329841648,1718739042249,-500.0,0.00016712,2]
[329841650,1718739042259,-1014.94555521,0.00016712,2]
[329841652,1718739042270,-500.0,0.00016712,2]
[329841654,1718739042278,-500.0,0.00016712,2]
[329841655,1718739042287,-500.0,0.00016712,2]
[329841656,1718739042298,-342.15688295,0.00016712,2]
[329841657,1718739042309,-500.0,0.00016712,2]
[329841658,1718739042323,-500.0,0.00016712,2]
[329841659,1718739042336,-500.0,0.00016712,2]
[329841660,1718739042348,-500.0,0.00016712,2]
[329841661,1718739042359,-500.0,0.00016712,2]
[329841662,1718739042370,-500.0,0.00016712,2]
[329841663,1718739042381,-500.0,0.00016712,2]
[329841664,1718739042391,-491.36308645,0.00016712,2]
[329841665,1718739042403,-500.0,0.00016712,2]
[329841666,1718739042413,-500.0,0.00016712,2]
[329841667,1718739042422,-500.0,0.00016712,2]
[329841668,1718739042432,-500.0,0.00016712,2]
[329841669,1718739042442,-298.1,0.00016712,2]
[329841670,1718739042451,-500.0,0.00016712,2]
[329841671,1718739042461,-500.0,0.00016712,2]
[329841672,1718739042471,-500.0,0.00016712,2]
[329841673,1718739042481,-500.0,0.00016712,2]
[329841674,1718739042492,-631.41981603,0.00016712,2]
[329841675,1718739042501,-500.0,0.00016712,2]
[329841676,1718739042511,-500.0,0.00016712,2]
[329841677,1718739042520,-500.0,0.00016712,2]
[329841678,1718739042531,-560.13,0.00016712,2]
[329841679,1718739042541,-500.0,0.00016712,2]
[329841680,1718739042550,-500.0,0.00016712,2]
[329841681,1718739042561,-500.0,0.00016712,2]
[329841682,1718739042571,-500.0,0.00016712,2]
[329841683,1718739042580,-500.0,0.00016712,2]
[329841684,1718739042590,-500.0,0.00016712,2]
[329841685,1718739042602,-500.0,0.00016712,2]
[329841686,1718739042612,-500.0,0.00016712,2]
[329841687,1718739042622,-185.05252027,0.00016712,2]
[329841688,1718739042632,-500.0,0.00016712,2]
[329841689,1718739042642,-500.0,0.00016712,2]
[329841690,1718739042651,-1498.29,0.00016712,2]
[329841691,1718739042661,-831.37,0.00016712,2]
[329841692,1718739042671,-500.0,0.00016712,2]
[329841693,1718739042682,-500.0,0.00016712,2]
[329841694,1718739042693,-500.0,0.00016712,2]
[329841695,1718739042703,-500.0,0.00016712,2]
[329841696,1718739042714,-3851.95,0.00016712,2]
[329841697,1718739042724,-286.67756531,0.00016712,2]